fUSD/lending_fUSD_20241017
["ID","MTS","AMOUNT","RATE_DAILY","PERIOD"]
[340375235,1729132238345,-1058.12629669,0.0001088,2]
[340375236,1729132238500,-1433.63710954,0.0001088,2]
[340375246,1729132240406,-269.68880905,0.0001088,2]
[340375247,1729132240418,-363.9067556,0.0001088,2]
[340375248,1729132240488,-2501.07185525,0.0001088,2]
[340375249,1729132240499,-5227.0184741,0.0001088,2]
[340375250,1729132240510,-2396.58360006,0.0001088,2]
[340375415,1729132244232,-2075.99433442,0.0001088,2]
[340375416,1729132246243,-4713.73119618,0.0001088,2]
[340375417,1729132246252,-1751.31051298,0.00010899,2]
[340375418,1729132246262,-6303.51906011,0.00010899,2]
[340375419,1729132246271,-150.0,0.00010899,2]
[340375420,1729132246280,-900.5441,0.000109,2]
[340375421,1729132246289,-53877.9601,0.000109,2]
[340375422,1729132246298,-633.5693,0.000109,2]
[340375423,1729132246308,-500.0,0.000109,2]
[340375424,1729132246320,-1801.1133,0.000109,2]
[340375425,1729132246331,-54058.1191,0.000109,2]
[340375426,1729132246341,-8097.8556,0.000109,2]
[340375427,1729132246351,-531.4693,0.000109,2]
[340375428,1729132246362,-1836.477797,0.000109,2]
[340375429,1729132246370,-1006.0,0.000109,2]
[340375430,1729132246380,-167.89156239,0.000109,2]
[340375431,1729132246389,-210.12494228,0.000109,2]
[340375432,1729132246398,-371.96,0.00010941,2]
[340375433,1729132246408,-202.45,0.00010959,2]
[340375434,1729132246418,-260.55,0.00010959,2]
[340375435,1729132246427,-248.22384933,0.00010973,2]
[340375436,1729132246436,-507.03763744,0.00010973,2]
[340375437,1729132246446,-150.0,0.00010981,2]
[340375438,1729132246457,-812.0,0.00010981,2]
[340375439,1729132246467,-97731.90489713,0.00011,2]
[340375440,1729132246478,-987.59305465,0.00011,2]
[340375441,1729132255912,667.5,0.00015002,12]
[340375442,1729132271670,432.07,9.01e-05,2]
[340375444,1729132393549,200.0,0.000105,5]
[340375445,1729132445261,550.0,0.0001,2]
[340375471,1729132856695,935.4642739,0.0002,30]
[340375472,1729132869604,410.46,8.569e-05,2]
[340375476,1729133053988,150.81147144,0.00027,120]
[340375487,1729133311793,-153.24,0.00010471,2]
[340375488,1729133311817,-250.0,0.00010498,2]
[340375489,1729133311846,-596.76,0.00010513,2]
[340375490,1729133312996,-203.24,0.00010513,2]
[340375491,1729133313018,-168.89,0.00010531,2]
[340375492,1729133313038,-176.16,0.00010531,2]
[340375493,1729133324880,-200.0,0.00010708,2]
[340375494,1729133324904,-300.0,0.00010833,2]
[340375495,1729133328366,-110.46,0.00010833,2]
[340375496,1729133328387,-150.0,0.00010899,2]
[340375497,1729133328412,-739.54,0.000109,2]
[340375498,1729133329756,-1000.0,0.000109,2]
[340375499,1729133331029,-1000.0,0.000109,2]
[340375500,1729133332139,-1000.0,0.000109,2]
[340375501,1729133333355,-1000.0,0.000109,2]
[340375502,1729133334307,-1000.0,0.000109,2]
[340375503,1729133335238,-1000.0,0.000109,2]
[340375504,1729133336288,-1000.0,0.000109,2]
[340375505,1729133341098,-500.0,0.000109,2]
[340375506,1729133376640,369.41,9.064e-05,2]
[340375507,1729133432388,-423.621412,0.00010845,2]
[340375508,1729133432397,-4478.27168882,0.000109,2]
[340375511,1729133432625,-263.44652171,0.000109,2]
[340375512,1729133432636,-2704.11559046,0.000109,2]
[340375513,1729133432649,-828.81546084,0.000109,2]
[340375514,1729133432660,-306.48999997,0.000109,2]
[340375517,1729133432813,-497.92044371,0.000109,2]
[340375533,1729133438565,-2787.67999336,0.000109,2]
[340375534,1729133438578,-443.81585153,0.000109,2]
[340375535,1729133438592,-276.14857609,0.000109,2]
[340375536,1729133438604,-1089.68148271,0.000109,2]
[340375537,1729133438756,-4146.1913908,0.000109,2]
[340375538,1729133438766,-168.78878286,0.000109,2]
[340375539,1729133438777,-642.54071714,0.000109,2]
[340375540,1729133438787,-54.68150513,0.000109,2]
[340375541,1729133438799,-176.06949487,0.000109,2]
[340375542,1729133438809,-167.89156233,0.000109,2]
[340375543,1729133438819,-231.02631095,0.000109,2]
[340375544,1729133439030,-14.11945504,0.000109,2]
[340375545,1729133439052,-1009.0,0.000109,2]
[340375546,1729133439062,-159.04,0.00010959,2]
[340375547,1729133439072,-208.44,0.00010959,2]
[340375548,1729133439082,-164.85,0.00010959,2]
[340375549,1729133439092,-176.93054495,0.00010981,2]
[340375550,1729133439120,-340.37240557,0.00010981,2]
[340375551,1729133439131,-124.01304948,0.00010981,2]
[340375552,1729133439140,-417.89494437,0.00010981,2]
[340375555,1729133440570,-13.66867074,0.00010981,2]
[340375556,1729133440583,-499.6435052,0.00010981,2]
[340375557,1729133440594,-396.08287969,0.00010981,2]
[340375558,1729133440604,-150.0,0.00010981,2]
[340375559,1729133440614,-6.24802073,0.00010981,2]
[340375560,1729133440641,-1064.4559759,0.00010981,2]
[340375561,1729133440654,-480.20620176,0.00010981,2]
[340375562,1729133440665,-367.54000994,0.00010981,2]
[340375563,1729133440676,-545.30495885,0.00010981,2]
[340375564,1729133440687,-7058.64883282,0.00010981,2]
[340375565,1729133440695,-25773.76050226,0.00011,2]
[340375566,1729133440707,-429.15446819,0.00011,2]
[340375567,1729133440718,-1990.44333304,0.00011,2]
[340375568,1729133440728,-610.47789754,0.00011,2]
[340375607,1729133443832,-39596.31609722,0.00011,2]
[340375608,1729133444031,-7024.43178761,0.00011,2]
[340375615,1729133446384,-42555.83706298,0.00011,2]
[340375616,1729133446515,-3369.89251904,0.00011,2]
[340375618,1729133843659,-198.6,0.00010751,2]
[340375619,1729133843682,-736.05069181,0.00010787,2]
[340375620,1729133843701,-65.34930819,0.00010799,2]
[340375621,1729133846447,-670.70138362,0.00010799,2]
[340375622,1729133846468,-329.29861638,0.00010874,2]
[340375623,1729133847834,-30.70138362,0.00010874,2]
[340375624,1729133847855,-300.0,0.00010899,2]
[340375625,1729133847877,-669.29861638,0.000109,2]
[340375626,1729133849252,-1000.0,0.000109,2]
[340375627,1729133850603,-1000.0,0.000109,2]
[340375628,1729133851731,-1000.0,0.000109,2]
[340375629,1729133852927,-1000.0,0.000109,2]
[340375630,1729133854088,-1000.0,0.000109,2]
[340375631,1729133855155,-1000.0,0.000109,2]
[340375632,1729133856218,-833.64338362,0.000109,2]
[340375633,1729133856239,-166.35661638,0.000109,2]
[340375634,1729133860607,-234.64438362,0.000109,2]
[340375635,1729133860629,-365.35561638,0.000109,2]
[340375636,1729133944060,350.93,8.884e-05,2]
[340375641,1729134275669,550.0,0.0001,2]
[340375642,1729134333962,-736.05069182,0.00010636,2]
[340375643,1729134333984,-250.0,0.00010735,2]
[340375644,1729134334006,-13.94930818,0.00010735,2]
[340375645,1729134343488,350.0,0.000109,4]
[340375647,1729134520692,330.0,0.00027,60]
[340375648,1729134542292,333.38,8.719e-05,2]
[340375649,1729134552315,331.83,0.000109,4]
[340375652,1729134631790,-290.78,0.0001058,2]
[340375653,1729134631801,-698.05069182,0.00010735,2]
[340375654,1729134631810,-150.0,0.00010899,2]
[340375655,1729134631820,-298.0,0.00010899,2]
[340375656,1729134631829,-1021.8114,0.000109,2]
[340375657,1729134631838,-69.10790818,0.000109,2]
[340375658,1729134632016,-108.29189182,0.000109,2]
[340375659,1729134632025,-391.70810818,0.000109,2]
[340375660,1729134632038,-719.46769182,0.000109,2]
[340375661,1729134632047,-863.9346,0.000109,2]
[340375662,1729134632272,-5019.0474,0.000109,2]
[340375663,1729134632282,-910.2359,0.000109,2]
[340375664,1729134632291,-2275.88700534,0.000109,2]
[340375665,1729134632300,-166.54153586,0.000109,2]
[340375666,1729134632310,-5793.17291946,0.000109,2]
[340375667,1729134632323,-163.43051066,0.000109,2]
[340375668,1729134632332,-433.7986854,0.00010914,2]
[340375675,1729134637779,-265.63980261,0.00010914,2]
[340375676,1729134637788,-84.90077738,0.00010955,2]
[340375677,1729134637801,-65.09922262,0.00010955,2]
[340375678,1729134637812,-166.75,0.00010959,2]
[340375679,1729134637823,-192.32,0.00010959,2]
[340375680,1729134637832,-17.28056222,0.00010983,2]
[340375681,1729134637956,-316.09943778,0.00010983,2]
[340375682,1729134637966,-214.38344133,0.00010998,2]
[340375683,1729134637975,-155.12544539,0.00011,2]
[340375684,1729134639644,-392.87455461,0.00011,2]
[340375686,1729134639654,-171251.240392,0.00011,2]
[340375687,1729134639666,-574.0,0.00011,2]
[340375688,1729134639859,-3605.9472505,0.00011,2]
[340375689,1729134639870,-4725.00518988,0.00011,2]
[340375690,1729134639882,-542.2,0.00011,2]
[340375692,1729134640066,-25.41126644,0.00011,2]
[340375775,1729134642898,-167.89156233,0.000109,2]
[340375776,1729134642908,-8842.07975335,0.00011,2]
[340375777,1729134645705,-4215.4037882,0.00010999,2]
[340375778,1729134645714,-2536.3962118,0.00011,2]
[340375779,1729134645725,-806.41047797,0.00011,2]
[340375780,1729134645739,-6990.55928817,0.00011,2]
[340375782,1729134645883,-58852.10901826,0.00011,2]
[340375784,1729134681607,2600.0,0.000104,3]
[340375785,1729134683705,5300.0,0.000105,3]
[340375786,1729134685824,8000.0,0.000106,3]
[340375787,1729134687930,10600.0,0.000107,3]
[340375788,1729134690088,13300.0,0.000108,3]
[340375789,1729134692185,2600.0,0.000109,3]
[340375790,1729134858821,500.0,0.00010789,3]
[340375795,1729135197801,300.04,8.703e-05,2]
[340375796,1729135199043,-767.37,0.0001071,2]
[340375797,1729135199065,-168.89,0.00010817,2]
[340375798,1729135199087,-63.74,0.0001085,2]
[340375799,1729135200949,-186.26,0.0001085,2]
[340375800,1729135200970,-150.0,0.00010898,2]
[340375801,1729135200992,-663.74,0.00010899,2]
[340375802,1729135201983,-1000.0,0.00010899,2]
[340375803,1729135202882,-1000.0,0.00010899,2]
[340375804,1729135203739,-1000.0,0.00010899,2]
[340375805,1729135205211,-1000.0,0.00010899,2]
[340375806,1729135207160,-1000.0,0.00010899,2]
[340375807,1729135212886,-500.0,0.00010899,2]
[340375808,1729135236864,159.20044,0.0001246,5]
[340375809,1729135237277,159.20044,0.00012445,5]
[340375810,1729135312000,176.0,0.00027,120]
[340375811,1729135351903,924.0,0.00010401,2]
[340375812,1729135373232,924.0,0.00010401,2]
[340375813,1729135394548,924.0,0.00010401,2]
[340375814,1729135415859,924.0,0.00010401,2]
[340375815,1729135437189,924.0,0.00010401,2]
[340375816,1729135459534,924.0,0.00010401,2]
[340375817,1729135481019,924.0,0.00010401,2]
[340375818,1729135502286,924.0,0.00010401,2]
[340375821,1729135631990,500.0,0.000103,3]
[340375822,1729135634099,1100.0,0.000104,3]
[340375823,1729135636241,1600.0,0.000105,3]
[340375824,1729135638333,2200.0,0.000106,3]
[340375825,1729135640485,2700.0,0.000107,3]
[340375826,1729135642550,500.0,0.000108,3]
[340375827,1729135644819,500.0,0.000109,3]
[340375830,1729135697561,345.1,8.468e-05,2]
[340375831,1729135721521,467.35105188,0.000145,120]
[340375847,1729135831762,-250.0,0.00010472,2]
[340375849,1729135831773,-158.88,0.00010529,2]
[340375850,1729135831782,-296.0248,0.0001061,2]
[340375851,1729135831791,-924.0,0.00010701,2]
[340375853,1729135831800,-345.1,0.00010732,2]
[340375855,1729135831809,-150.0,0.00010898,2]
[340375856,1729135831818,-32726.54020559,0.00010899,2]
[340375860,1729135832081,-10576.44109441,0.00010899,2]
[340375861,1729135832091,-1000.0,0.00010899,2]
[340375862,1729135832100,-16139.17035856,0.00010899,2]
[340375863,1729135832110,-5500.6216,0.000109,2]
[340375864,1729135832119,-2689.909763,0.000109,2]
[340375865,1729135832133,-5572.31132966,0.000109,2]
[340375866,1729135832148,-167.89156233,0.000109,2]
[340375867,1729135832162,-167.2,0.00010959,2]
[340375868,1729135832175,-250.0,0.00010959,2]
[340375869,1729135832188,-159.04,0.00010959,2]
[340375870,1729135832201,-2654.61538593,0.0001098,2]
[340375873,1729135832231,-1491.79775341,0.0001098,2]
[340375887,1729135840006,-150.78079982,0.00010457,2]
[340375888,1729135840019,-639.70048929,0.0001098,2]
[340375889,1729135840034,-500.00813981,0.0001098,2]
[340375890,1729135840150,-46.80569643,0.0001098,2]
[340375902,1729135840879,159.20044,0.0001246,5]
[340375912,1729135845881,-2633.52661891,0.0001098,2]
[340375913,1729135937679,221.14,0.00027,60]
[340375914,1729135946077,221.14,0.00027,60]
[340375915,1729135957675,221.14,0.00027,60]
[340375916,1729135965637,200.0,0.000103,3]
[340375917,1729135967162,221.14,0.00027,60]
[340375918,1729135967740,500.0,0.000104,3]
[340375919,1729135969835,800.0,0.000105,3]
[340375920,1729135971929,1100.0,0.000106,3]
[340375921,1729135974463,1400.0,0.000107,3]
[340375922,1729135976821,200.0,0.000108,3]
[340375923,1729135978639,200.0,0.000109,3]
[340375926,1729136107295,550.0,0.0001,2]
[340375929,1729136339200,-250.0,0.00010637,2]
[340375930,1729136339224,-1743.9552,0.00010899,2]
[340375931,1729136339247,-1281.844,0.00010899,2]
[340375932,1729136339270,-150.0,0.00010899,2]
[340375933,1729136339290,-300.0,0.00010899,2]
[340375934,1729136339311,-300.0,0.00010899,2]
[340375935,1729136339333,-294.153,0.00010899,2]
[340375936,1729136339353,-68955.4777,0.000109,2]
[340375937,1729136339373,-500.0,0.000109,2]
[340375938,1729136339394,-5146.11597474,0.000109,2]
[340375939,1729136339413,-7500.0,0.000109,2]
[340375940,1729136339436,-179.26833217,0.000109,2]
[340375941,1729136339456,-544.2871432,0.000109,2]
[340375942,1729136339478,-1000.0,0.00010936,2]
[340375943,1729136339497,-166.75,0.00010959,2]
[340375944,1729136339521,-166.82,0.00010959,2]
[340375945,1729136339542,-178.44093515,0.00010959,2]
[340375946,1729136339563,-160.85533464,0.00010973,2]
[340375947,1729136339583,-1150.0,0.00010979,2]
[340375948,1729136339603,-13041.9911313,0.0001098,2]
[340375949,1729136339624,-150.0,0.00010981,2]
[340375950,1729136339647,-2239.79,0.00010999,2]
[340375951,1729136339672,-253595.24591252,0.00010999,2]
[340375952,1729136339692,-838.8740008,0.00010999,2]
[340375953,1729136339713,-150.6044053,0.00010999,2]
[340375954,1729136339735,-668.32540964,0.00010999,2]
[340375955,1729136339756,-13825.1996675,0.00010999,2]
[340375956,1729136339778,-505.4098823,0.00010999,2]
[340375957,1729136339798,-1461.2036708,0.00010999,2]
[340375958,1729136339818,-1346.8129943,0.00010999,2]
[340375959,1729136339840,-547.0,0.00011,2]
[340375960,1729136339865,-710744.28590174,0.00011,2]
[340375961,1729136339886,-289870.02677049,0.00011,2]
[340375962,1729136339913,-877740.46302301,0.00011,2]
[340375963,1729136339937,-284925.41658916,0.00011,2]
[340375964,1729136339965,-5021714.39748012,0.00011,2]
[340375965,1729136339987,-24979.45640069,0.00011,2]
[340375966,1729136340226,-273067.14588496,0.00011,2]
[340375967,1729136340249,-365.22,0.00011,2]
[340375968,1729136340271,-205.59259048,0.00011,2]
[340375969,1729136340296,-275669.38040144,0.00011,2]
[340375970,1729136340317,-185.250682,0.00011,2]
[340375971,1729136340342,-643951.77325236,0.00011,2]
[340375972,1729136340364,-150.0,0.00011,2]
[340375973,1729136340386,-150.0,0.00011,2]
[340375974,1729136340408,-150.67,0.00011,2]
[340375975,1729136340434,-359.29,0.00011,2]
[340375976,1729136340454,-300.0,0.00011,2]
[340375977,1729136340477,-150.0,0.00011,2]
[340375978,1729136340498,-150.0,0.00011,2]
[340375979,1729136340521,-535.32,0.00011,2]
[340375980,1729136340541,-429.69,0.00011,2]
[340375981,1729136340562,-424.22,0.00011,2]
[340375982,1729136340584,-150.0,0.00011,2]
[340375983,1729136340606,-300.0,0.00011,2]
[340375984,1729136340626,-300.0,0.00011,2]
[340375985,1729136340647,-150.0,0.00011,2]
[340375986,1729136340668,-150.0,0.00011,2]
[340375987,1729136340689,-755.98,0.00011,2]
[340375988,1729136340710,-359.29,0.00011,2]
[340375989,1729136340732,-150.0,0.00011,2]
[340375990,1729136340753,-789.73,0.00011,2]
[340375991,1729136340774,-429.69,0.00011,2]
[340375992,1729136340795,-150.0,0.00011,2]
[340375993,1729136340815,-300.0,0.00011,2]
[340375994,1729136340841,-300.0,0.00011,2]
[340375995,1729136340862,-150.0,0.00011,2]
[340375996,1729136340885,-429.69,0.00011,2]
[340375997,1729136340905,-150.0,0.00011,2]
[340375998,1729136340927,-150.0,0.00011,2]
[340375999,1729136340949,-378.16,0.00011,2]
[340376000,1729136340971,-359.29,0.00011,2]
[340376001,1729136340992,-848.44,0.00011,2]
[340376002,1729136341013,-755.98,0.00011,2]
[340376003,1729136341034,-150.0,0.00011,2]
[340376004,1729136341055,-150.0,0.00011,2]
[340376005,1729136341078,-150.0,0.00011,2]
[340376006,1729136341098,-150.0,0.00011,2]
[340376007,1729136341118,-718.46,0.00011,2]
[340376008,1729136341139,-300.0,0.00011,2]
[340376009,1729136341160,-863.42,0.00011,2]
[340376010,1729136341180,-150.0,0.00011,2]
[340376011,1729136341201,-150.0,0.00011,2]
[340376012,1729136341223,-434.6,0.00011,2]
[340376013,1729136341244,-150.35,0.00011,2]
[340376014,1729136341264,-150.0,0.00011,2]
[340376015,1729136341285,-150.0,0.00011,2]
[340376016,1729136341306,-150.64,0.00011,2]
[340376017,1729136341326,-363.21,0.00011,2]
[340376018,1729136341347,-159.20044,0.00011,2]
[340376019,1729136341368,-159.20044,0.00011,2]
[340376020,1729136341390,-150.0,0.00011,2]
[340376021,1729136341410,-208.0,0.00011,2]
[340376022,1729136341434,-208.0,0.00011,2]
[340376023,1729136341456,-208.0,0.00011,2]
[340376024,1729136341478,-208.0,0.00011,2]
[340376025,1729136341499,-208.0,0.00011,2]
[340376026,1729136341521,-208.0,0.00011,2]
[340376027,1729136341544,-208.0,0.00011,2]
[340376028,1729136341566,-208.0,0.00011,2]
[340376029,1729136341589,-208.0,0.00011,2]
[340376030,1729136341611,-208.0,0.00011,2]
[340376031,1729136341633,-208.0,0.00011,2]
[340376032,1729136341657,-208.0,0.00011,2]
[340376033,1729136341676,-208.0,0.00011,2]
[340376034,1729136341698,-208.0,0.00011,2]
[340376035,1729136341721,-208.0,0.00011,2]
[340376036,1729136341742,-208.0,0.00011,2]
[340376037,1729136341763,-208.0,0.00011,2]
[340376038,1729136341784,-208.0,0.00011,2]
[340376039,1729136341806,-208.0,0.00011,2]
[340376040,1729136341828,-219.0,0.00011,2]
[340376041,1729136341849,-219.0,0.00011,2]
[340376042,1729136341869,-219.0,0.00011,2]
[340376043,1729136341889,-219.0,0.00011,2]
[340376044,1729136341909,-219.0,0.00011,2]
[340376045,1729136341929,-219.0,0.00011,2]
[340376046,1729136341950,-219.0,0.00011,2]
[340376047,1729136341970,-219.0,0.00011,2]
[340376048,1729136341990,-219.0,0.00011,2]
[340376049,1729136342012,-10000.0,0.00011,2]
[340376050,1729136343239,10000.0,0.00011,2]
[340376051,1729136343753,10000.0,0.00011,2]
[340376052,1729136344684,10000.0,0.00011,2]
[340376053,1729136345657,234.53212634,0.00011,2]
[340376054,1729136351186,559.2493338,0.00010999,2]
[340376055,1729136363231,310.59,9.262e-05,2]
[340376056,1729136376496,2186.6912934,0.00010999,2]
[340376057,1729136405036,2000.0,0.00011,2]
[340376058,1729136410485,200.0,0.00011,2]
[340376059,1729136411413,179.33,0.00010981,2]
[340376061,1729136415135,334.16270482,0.00010999,2]
[340376062,1729136415893,150.0,0.00010981,2]
[340376063,1729136425246,167.08135241,0.00010999,2]
[340376064,1729136427794,11429.5364124,0.00010999,2]
[340376065,1729136435220,159.200443,0.00011,2]
[340376066,1729136445283,167.08135241,0.00010999,2]
[340376068,1729136475363,1000.0,0.0001094,2]
[340376069,1729136506777,838.8740013,0.00010999,2]
[340376070,1729136512283,187446.5314073,0.0001,2]
[340376071,1729136532100,250.0,0.00010983,2]
[340376073,1729136542786,168.89,0.00010957,2]
[340376075,1729136575968,328.7,0.00011,2]
[340376076,1729136579713,203.0,0.00011,2]
[340376078,1729136580032,203.0,0.00011,2]
[340376079,1729136580415,203.0,0.00011,2]
[340376080,1729136580760,203.0,0.00011,2]
[340376081,1729136581102,203.0,0.00011,2]
[340376084,1729136623767,164.85,0.00010959,2]
[340376089,1729136655184,202.0,0.00011,2]
[340376090,1729136655507,202.0,0.00011,2]
[340376091,1729136655842,202.0,0.00011,2]
[340376092,1729136656166,202.0,0.00011,2]
[340376093,1729136656489,202.0,0.00011,2]
[340376094,1729136657171,202.0,0.00011,2]
[340376095,1729136657216,202.0,0.00011,2]
[340376096,1729136658050,202.0,0.00011,2]
[340376097,1729136658433,202.0,0.00011,2]
[340376099,1729136711458,2000.0,0.00011,2]
[340376100,1729136718779,200.0,0.00011,2]
[340376103,1729136724657,1503.2050693,0.00010999,2]
[340376104,1729136752883,466.0411115,0.00010999,2]
[340376105,1729136777565,7872.3884074,0.00010999,2]
[340376108,1729136884137,295.83,0.00011,2]
[340376109,1729136891822,295.06,9.228e-05,2]
[340376114,1729137006084,2000.0,0.00011,2]
[340376115,1729137012278,200.0,0.00011,2]
[340376116,1729137018352,150.0,0.00010981,2]
[340376117,1729137032049,-544.0998858,0.00011007,2]
[340376118,1729137032062,-665.27138989,0.00011007,2]
[340376119,1729137032074,-2834.62872431,0.00011007,2]
[340376120,1729137032083,-771.13196664,0.0001111,2]
[340376121,1729137032096,-1228.86803336,0.0001111,2]
[340376122,1729137032105,-200.0,0.0001111,2]
[340376123,1729137032115,-2000.0,0.0001111,2]
[340376124,1729137032125,-200.0,0.0001111,2]
[340376125,1729137032134,-2000.0,0.0001111,2]
[340376126,1729137032144,-200.0,0.0001111,2]
[340376127,1729137032154,-150.0,0.000112,2]
[340376128,1729137032163,-150.3,0.000112,2]
[340376129,1729137032173,-200.0,0.00011221,2]
[340376130,1729137032183,-229.22686191,0.00011221,2]
[340376131,1729137032193,-200.0,0.00011221,2]
[340376132,1729137032203,-2000.0,0.00011221,2]
[340376133,1729137032212,-200.0,0.00011221,2]
[340376134,1729137032221,-924.0,0.00011236,2]
[340376135,1729137032232,-150.0,0.00011299,2]
[340376136,1729137032242,-150.0,0.000113,2]
[340376137,1729137032251,-150.0,0.000113,2]
[340376138,1729137032261,-150.0,0.000113,2]
[340376139,1729137032271,-150.0,0.000113,2]
[340376140,1729137032281,-150.0,0.000113,2]
[340376141,1729137032290,-150.0,0.000113,2]
[340376142,1729137032299,-150.0,0.000113,2]
[340376143,1729137032309,-300.95,0.000113,2]
[340376144,1729137032318,-150.0,0.000113,2]
[340376145,1729137032328,-387.6,0.000113,2]
[340376146,1729137032337,-756.07,0.000113,2]
[340376147,1729137032348,-150.0,0.000113,2]
[340376148,1729137032357,-359.29,0.000113,2]
[340376149,1729137032366,-150.0,0.000113,2]
[340376150,1729137032376,-150.0,0.000113,2]
[340376151,1729137032386,-150.0,0.000113,2]
[340376152,1729137032396,-150.0,0.000113,2]
[340376153,1729137032406,-150.0,0.000113,2]
[340376154,1729137032415,-150.0,0.000113,2]
[340376155,1729137032425,-266.8,0.000113,2]
[340376156,1729137032435,-429.69,0.000113,2]
[340376157,1729137032445,-150.0,0.000113,2]
[340376158,1729137032457,-150.0,0.000113,2]
[340376159,1729137032467,-150.0,0.000113,2]
[340376160,1729137032477,-718.58,0.000113,2]
[340376161,1729137032486,-150.0,0.000113,2]
[340376162,1729137032495,-463.47989802,0.000113,2]
[340376163,1729137032507,-292.50010198,0.000113,2]
[340376165,1729137032517,-150.0,0.000113,2]
[340376166,1729137032526,-150.0,0.000113,2]
[340376167,1729137032535,-150.0,0.000113,2]
[340376168,1729137032546,-150.0,0.000113,2]
[340376169,1729137032556,-59.40531045,0.00011333,2]
[340376170,1729137032606,-140.59468955,0.00011333,2]
[340376171,1729137032615,-200.0,0.00011333,2]
[340376172,1729137032626,-200.0,0.00011333,2]
[340376173,1729137032635,-421.53779223,0.00011349,2]
[340376174,1729137032646,-150.0,0.000114,2]
[340376175,1729137032656,-200.0,0.00011447,2]
[340376176,1729137032668,-200.0,0.00011447,2]
[340376177,1729137032677,-200.0,0.00011447,2]
[340376178,1729137032687,-295.06,0.00011492,2]
[340376179,1729137032696,-2751.0,0.00011507,2]
[340376180,1729137032707,-184.61962726,0.000116,2]
[340376181,1729137032718,-150.0,0.000116,2]
[340376182,1729137032728,-718.18,0.000116,2]
[340376183,1729137032739,-150.0,0.000116,2]
[340376184,1729137032748,-1631.97,0.000116,2]
[340376185,1729137032757,-300.0,0.000116,2]
[340376186,1729137032767,-150.0,0.000116,2]
[340376187,1729137032777,-150.0,0.000116,2]
[340376188,1729137032786,-150.0,0.000116,2]
[340376189,1729137032796,-531.88,0.000116,2]
[340376190,1729137032807,-429.69,0.000116,2]
[340376191,1729137032819,-150.0,0.000116,2]
[340376192,1729137032828,-150.0,0.000116,2]
[340376193,1729137032837,-203.06074308,0.000116,2]
[340376194,1729137032853,-96.93925692,0.000116,2]
[340376195,1729137032863,-150.0,0.000116,2]
[340376196,1729137032872,-143.88218988,0.000116,2]
[340376199,1729137038268,-6.11781012,0.000116,2]
[340376200,1729137038278,-150.0,0.000116,2]
[340376201,1729137038287,-150.0,0.000116,2]
[340376202,1729137038296,-150.0,0.000116,2]